fUSD/lending_fUSD_20250811
["ID","MTS","AMOUNT","RATE_DAILY","PERIOD"]
[378639399,1754935853686,-400.0,0.00016712,2]
[378639400,1754935853696,-1231.53,0.00016712,2]
[378639401,1754935853705,-818.91,0.00016712,2]
[378639402,1754935853714,-522.86,0.00016712,2]
[378639403,1754935853723,-434.96,0.00016712,2]
[378639404,1754935853732,-400.0,0.00016712,2]
[378639405,1754935853741,-812.85,0.00016712,2]
[378639406,1754935853750,-400.0,0.00016712,2]
[378639407,1754935853759,-482.87,0.00016712,2]
[378639408,1754935853768,-400.0,0.00016712,2]
[378639409,1754935853777,-553.07,0.00016712,2]
[378639410,1754935853786,-543.32,0.00016712,2]
[378639411,1754935853795,-151.0,0.00016712,2]
[378639412,1754935853804,-585.44,0.00016712,2]
[378639413,1754935853813,-400.0,0.00016712,2]
[378639414,1754935853823,-400.0,0.00016712,2]
[378639415,1754935853832,-400.0,0.00016712,2]
[378639416,1754935853841,-490.55,0.00016712,2]
[378639417,1754935853850,-400.0,0.00016712,2]
[378639418,1754935853859,-609.49,0.00016712,2]
[378639419,1754935853869,-567.33,0.00016712,2]
[378639420,1754935853877,-7073.33,0.00016712,2]
[378639421,1754935853886,-400.0,0.00016712,2]
[378639422,1754935853896,-803.88,0.00016712,2]
[378639423,1754935853905,-400.0,0.00016712,2]
[378639424,1754935853914,-400.0,0.00016712,2]
[378639425,1754935853923,-400.0,0.00016712,2]
[378639426,1754935853932,-498.53,0.00016712,2]
[378639427,1754935853941,-400.0,0.00016712,2]
[378639428,1754935853951,-664.92,0.00016712,2]
[378639429,1754935853960,-967.77,0.00016712,2]
[378639430,1754935853970,-671.84,0.00016712,2]
[378639431,1754935853979,-400.0,0.00016712,2]
[378639432,1754935853988,-845.57,0.00016712,2]
[378639433,1754935853997,-400.0,0.00016712,2]
[378639434,1754935854006,-1124.77,0.00016712,2]
[378639435,1754935854015,-891.08,0.00016712,2]
[378639436,1754935854024,-792.41,0.00016712,2]
[378639437,1754935854033,-400.0,0.00016712,2]
[378639438,1754935854042,-400.0,0.00016712,2]
[378639439,1754935854052,-1119.17,0.00016712,2]
[378639440,1754935854061,-708.7,0.00016712,2]
[378639441,1754935854070,-1416.98,0.00016712,2]
[378639442,1754935854080,-428.94,0.00016712,2]
[378639443,1754935854091,-572.29,0.00016712,2]
[378639444,1754935854101,-400.0,0.00016712,2]
[378639445,1754935854110,-400.0,0.00016712,2]
[378639446,1754935854122,-493.52,0.00016712,2]
[378639447,1754935854131,-400.0,0.00016712,2]
[378639448,1754935854140,-400.0,0.00016712,2]
[378639449,1754935854150,-400.0,0.00016712,2]
[378639450,1754935854159,-400.0,0.00016712,2]
[378639451,1754935854168,-400.0,0.00016712,2]
[378639452,1754935854177,-501.74,0.00016712,2]
[378639453,1754935854187,-400.0,0.00016712,2]
[378639454,1754935854196,-400.0,0.00016712,2]
[378639455,1754935854206,-561.51,0.00016712,2]
[378639456,1754935854215,-512.06,0.00016712,2]
[378639457,1754935854224,-400.0,0.00016712,2]
[378639458,1754935854234,-400.0,0.00016712,2]
[378639459,1754935854243,-758.31,0.00016712,2]
[378639460,1754935854252,-758.45,0.00016712,2]
[378639461,1754935854261,-400.0,0.00016712,2]
[378639462,1754935854270,-400.0,0.00016712,2]
[378639463,1754935854279,-807.2,0.00016712,2]
[378639464,1754935854289,-400.0,0.00016712,2]
[378639465,1754935854298,-400.0,0.00016712,2]
[378639466,1754935854307,-400.0,0.00016712,2]
[378639467,1754935854316,-610.63,0.00016712,2]
[378639468,1754935854325,-400.0,0.00016712,2]
[378639469,1754935854337,-400.0,0.00016712,2]
[378639470,1754935854346,-2828.86,0.00016712,2]
[378639471,1754935854355,-400.0,0.00016712,2]
[378639472,1754935854365,-1130.89,0.00016712,2]
[378639473,1754935854373,-620.77,0.00016712,2]
[378639474,1754935854382,-400.0,0.00016712,2]
[378639475,1754935854392,-614.29,0.00016712,2]
[378639476,1754935854401,-400.0,0.00016712,2]
[378639477,1754935854410,-400.0,0.00016712,2]
[378639478,1754935854419,-400.0,0.00016712,2]
[378639479,1754935854429,-400.0,0.00016712,2]
[378639480,1754935854438,-814.59,0.00016712,2]
[378639481,1754935854447,-400.0,0.00016712,2]
[378639482,1754935854457,-459.41878506,0.00016712,2]
[378639483,1754935854466,-490.17,0.00016712,2]
[378639484,1754935854475,-400.0,0.00016712,2]
[378639485,1754935854485,-400.0,0.00016712,2]
[378639486,1754935854495,-508.39,0.00016712,2]
[378639487,1754935854504,-400.0,0.00016712,2]
[378639488,1754935854513,-872.47,0.00016712,2]
[378639489,1754935854522,-300.0,0.00016712,2]
[378639490,1754935854531,-742.34,0.00016712,2]
[378639491,1754935854541,-400.0,0.00016712,2]
[378639492,1754935854553,-400.0,0.00016712,2]
[378639493,1754935854563,-400.0,0.00016712,2]
[378639494,1754935854572,-400.0,0.00016712,2]
[378639495,1754935854581,-403.85,0.00016712,2]
[378639496,1754935854593,-465.22,0.00016712,2]
[378639497,1754935854603,-461.5,0.00016712,2]
[378639498,1754935854612,-400.0,0.00016712,2]
[378639499,1754935854621,-400.0,0.00016712,2]
[378639500,1754935854630,-865.47,0.00016712,2]
[378639501,1754935854639,-401.48,0.00016712,2]
[378639502,1754935854648,-426.39,0.00016712,2]
[378639503,1754935854658,-151.0,0.00016712,2]
[378639504,1754935854667,-400.0,0.00016712,2]
[378639505,1754935854677,-1139.65,0.00016712,2]
[378639506,1754935854686,-821.82,0.00016712,2]
[378639507,1754935854696,-400.0,0.00016712,2]
[378639508,1754935854705,-1467.9,0.00016712,2]
[378639509,1754935854714,-400.0,0.00016712,2]
[378639510,1754935854723,-400.0,0.00016712,2]
[378639511,1754935854731,-685.4,0.00016712,2]
[378639512,1754935854741,-400.0,0.00016712,2]
[378639513,1754935854750,-400.0,0.00016712,2]
[378639514,1754935854759,-430.57,0.00016712,2]
[378639515,1754935854768,-623.59,0.00016712,2]
[378639516,1754935854778,-646.95,0.00016712,2]
[378639517,1754935854787,-400.91,0.00016712,2]
[378639518,1754935854796,-400.0,0.00016712,2]
[378639519,1754935854806,-400.0,0.00016712,2]
[378639520,1754935854815,-400.0,0.00016712,2]
[378639521,1754935854825,-400.0,0.00016712,2]
[378639522,1754935854834,-151.0,0.00016712,2]
[378639523,1754935854843,-415.74,0.00016712,2]
[378639524,1754935854852,-483.27,0.00016712,2]
[378639525,1754935854862,-754.09,0.00016712,2]
[378639526,1754935854871,-400.0,0.00016712,2]
[378639527,1754935854881,-400.0,0.00016712,2]
[378639528,1754935854890,-400.0,0.00016712,2]
[378639529,1754935854899,-400.0,0.00016712,2]
[378639530,1754935854908,-400.0,0.00016712,2]
[378639531,1754935854917,-631.56,0.00016712,2]
[378639532,1754935854927,-436.05,0.00016712,2]
[378639533,1754935854936,-400.0,0.00016712,2]
[378639534,1754935854945,-824.66,0.00016712,2]
[378639535,1754935854954,-400.0,0.00016712,2]
[378639536,1754935854964,-400.0,0.00016712,2]
[378639537,1754935854973,-400.0,0.00016712,2]
[378639538,1754935854982,-2622.51,0.00016712,2]
[378639539,1754935854992,-400.0,0.00016712,2]
[378639540,1754935855001,-400.0,0.00016712,2]
[378639541,1754935855011,-400.0,0.00016712,2]
[378639542,1754935855020,-1714.97,0.00016712,2]
[378639543,1754935855030,-757.94,0.00016712,2]
[378639544,1754935855039,-400.0,0.00016712,2]
[378639545,1754935855048,-420.9,0.00016712,2]
[378639546,1754935855058,-951.14,0.00016712,2]
[378639547,1754935855067,-400.0,0.00016712,2]
[378639548,1754935855076,-400.0,0.00016712,2]
[378639549,1754935855087,-1034.71,0.00016712,2]
[378639550,1754935855097,-400.0,0.00016712,2]
[378639551,1754935855107,-600.06,0.00016712,2]
[378639552,1754935855118,-400.0,0.00016712,2]
[378639553,1754935855128,-566.01,0.00016712,2]
[378639554,1754935855137,-760.71,0.00016712,2]
[378639555,1754935855146,-400.0,0.00016712,2]
[378639556,1754935855155,-400.0,0.00016712,2]
[378639557,1754935855166,-400.0,0.00016712,2]
[378639558,1754935855175,-1456.87,0.00016712,2]
[378639559,1754935855185,-400.0,0.00016712,2]
[378639560,1754935855195,-400.0,0.00016712,2]
[378639561,1754935855205,-424.25,0.00016712,2]
[378639562,1754935855214,-400.0,0.00016712,2]
[378639563,1754935855224,-400.0,0.00016712,2]
[378639564,1754935855233,-400.0,0.00016712,2]
[378639565,1754935855242,-730.72,0.00016712,2]
[378639566,1754935855252,-921.21,0.00016712,2]
[378639567,1754935855261,-400.0,0.00016712,2]
[378639568,1754935855270,-492.09,0.00016712,2]
[378639569,1754935855280,-400.0,0.00016712,2]
[378639570,1754935855289,-517.26,0.00016712,2]
[378639571,1754935855298,-400.0,0.00016712,2]
[378639572,1754935855308,-400.0,0.00016712,2]
[378639573,1754935855317,-400.0,0.00016712,2]
[378639574,1754935855327,-400.0,0.00016712,2]
[378639575,1754935855338,-580.48,0.00016712,2]
[378639576,1754935855347,-1196.0,0.00016712,2]
[378639577,1754935855357,-471.94,0.00016712,2]
[378639578,1754935855367,-800.49,0.00016712,2]
[378639579,1754935855376,-492.77,0.00016712,2]
[378639580,1754935855386,-423.61411747,0.00016712,2]
[378639581,1754935855395,-1752.98,0.00016712,2]
[378639582,1754935855405,-1894.19,0.00016712,2]
[378639583,1754935855414,-400.0,0.00016712,2]
[378639584,1754935855423,-400.0,0.00016712,2]
[378639585,1754935855433,-6696.24708,0.00016712,2]
[378639586,1754935855443,-1233.18,0.00016712,2]
[378639587,1754935855453,-400.0,0.00016712,2]
[378639588,1754935855462,-400.0,0.00016712,2]
[378639589,1754935855472,-400.0,0.00016712,2]
[378639590,1754935855481,-6696.24708,0.00016712,2]
[378639591,1754935855491,-400.0,0.00016712,2]
[378639592,1754935855501,-400.0,0.00016712,2]
[378639593,1754935855511,-1632.28,0.00016712,2]
[378639594,1754935855520,-718.99,0.00016712,2]
[378639595,1754935855529,-400.0,0.00016712,2]
[378639596,1754935855539,-400.0,0.00016712,2]
[378639597,1754935855548,-909.83,0.00016712,2]
[378639598,1754935855558,-400.0,0.00016712,2]
[378639599,1754935855568,-581.09,0.00016712,2]
[378639600,1754935855578,-400.0,0.00016712,2]
[378639601,1754935855588,-433.87,0.00016712,2]
[378639602,1754935855597,-1975.45,0.00016712,2]
[378639603,1754935855606,-151.0,0.00016712,2]
[378639604,1754935855616,-416.47,0.00016712,2]
[378639605,1754935855626,-810.08,0.00016712,2]
[378639606,1754935855635,-151.0,0.00016712,2]
[378639607,1754935855644,-1139.38,0.00016712,2]
[378639608,1754935855653,-400.0,0.00016712,2]
[378639609,1754935855663,-400.0,0.00016712,2]
[378639610,1754935855672,-156.75477157,0.00016712,2]
[378639611,1754935855682,-400.0,0.00016712,2]
[378639612,1754935855691,-1765.73,0.00016712,2]
[378639613,1754935855701,-833.86,0.00016712,2]
[378639614,1754935855710,-400.0,0.00016712,2]
[378639615,1754935855719,-400.0,0.00016712,2]
[378639616,1754935855728,-425.6,0.00016712,2]
[378639617,1754935855737,-485.48,0.00016712,2]
[378639618,1754935855746,-869.06,0.00016712,2]
[378639619,1754935855755,-429.42,0.00016712,2]
[378639620,1754935855764,-1618.19,0.00016712,2]
[378639621,1754935855774,-1222.87,0.00016712,2]
[378639622,1754935855783,-550.62,0.00016712,2]
[378639623,1754935855792,-400.0,0.00016712,2]
[378639624,1754935855801,-633.38,0.00016712,2]
[378639625,1754935855810,-582.3,0.00016712,2]
[378639626,1754935855819,-485.43,0.00016712,2]
[378639627,1754935855828,-853.54,0.00016712,2]
[378639628,1754935855838,-400.0,0.00016712,2]
[378639629,1754935855847,-400.0,0.00016712,2]
[378639630,1754935855856,-400.0,0.00016712,2]
[378639631,1754935855865,-400.0,0.00016712,2]
[378639632,1754935855874,-400.0,0.00016712,2]
[378639633,1754935855883,-574.83,0.00016712,2]
[378639634,1754935855893,-282.27404809,0.00016712,2]
[378639635,1754935855901,-400.0,0.00016712,2]
[378639636,1754935855911,-10997.96,0.00016712,2]
[378639637,1754935855920,-3864.47,0.00016712,2]
[378639638,1754935855929,-400.0,0.00016712,2]
[378639639,1754935855939,-1284.94,0.00016712,2]
[378639640,1754935855948,-1479.64,0.00016712,2]
[378639641,1754935855957,-770.0,0.00016712,2]
[378639642,1754935855966,-830.74,0.00016712,2]
[378639643,1754935855976,-400.0,0.00016712,2]
[378639644,1754935855986,-622.61,0.00016712,2]
[378639645,1754935855995,-789.16,0.00016712,2]
[378639646,1754935856004,-400.0,0.00016712,2]
[378639647,1754935856013,-772.81,0.00016712,2]
[378639648,1754935856023,-1284.02,0.00016712,2]
[378639649,1754935856032,-400.0,0.00016712,2]
[378639650,1754935856042,-400.0,0.00016712,2]
[378639651,1754935856051,-400.0,0.00016712,2]
[378639652,1754935856060,-767.44,0.00016712,2]
[378639653,1754935856069,-578.47,0.00016712,2]
[378639654,1754935856078,-591.76,0.00016712,2]
[378639655,1754935856088,-1533.08,0.00016712,2]
[378639656,1754935856098,-692.25,0.00016712,2]
[378639657,1754935856108,-400.0,0.00016712,2]
[378639658,1754935856120,-672.99,0.00016712,2]
[378639659,1754935856129,-400.0,0.00016712,2]
[378639660,1754935856139,-400.0,0.00016712,2]
[378639661,1754935856148,-400.0,0.00016712,2]
[378639662,1754935856159,-1604.15,0.00016712,2]
[378639663,1754935856168,-543.63,0.00016712,2]
[378639664,1754935856177,-1024.14,0.00016712,2]
[378639665,1754935856187,-2160.12,0.00016712,2]
[378639666,1754935856196,-400.0,0.00016712,2]
[378639667,1754935856205,-400.0,0.00016712,2]
[378639668,1754935856214,-400.0,0.00016712,2]
[378639669,1754935856223,-400.0,0.00016712,2]
[378639670,1754935856233,-3063.2,0.00016712,2]
[378639671,1754935856242,-432.61,0.00016712,2]
[378639672,1754935856252,-594.36,0.00016712,2]
[378639673,1754935856261,-465.42,0.00016712,2]
[378639674,1754935856270,-418.69,0.00016712,2]
[378639675,1754935856280,-415.55,0.00016712,2]
[378639676,1754935856289,-400.0,0.00016712,2]
[378639677,1754935856298,-400.0,0.00016712,2]
[378639678,1754935856308,-356.55888404,0.00016712,2]
[378639679,1754935856344,-43.44111596,0.00016712,2]
[378639680,1754935856354,-400.0,0.00016712,2]
[378639681,1754935856364,-400.0,0.00016712,2]
[378639682,1754935856374,-400.0,0.00016712,2]
[378639683,1754935856383,-498.42,0.00016712,2]
[378639684,1754935856392,-894.05,0.00016712,2]
[378639685,1754935856402,-1299.15,0.00016712,2]
[378639686,1754935856411,-400.0,0.00016712,2]
[378639687,1754935856420,-400.0,0.00016712,2]
[378639688,1754935856430,-400.0,0.00016712,2]
[378639689,1754935856439,-2182.95,0.00016712,2]
[378639690,1754935856448,-400.0,0.00016712,2]
[378639691,1754935856457,-400.0,0.00016712,2]
[378639692,1754935856466,-400.0,0.00016712,2]
[378639693,1754935856476,-871.93,0.00016712,2]
[378639694,1754935856485,-796.31,0.00016712,2]
[378639695,1754935856495,-1380.57,0.00016712,2]
[378639696,1754935856504,-1311.82,0.00016712,2]
[378639697,1754935856513,-400.0,0.00016712,2]
[378639698,1754935856523,-400.0,0.00016712,2]
[378639699,1754935856533,-861.43,0.00016712,2]
[378639700,1754935856542,-1188.88,0.00016712,2]
[378639701,1754935856551,-766.18,0.00016712,2]
[378639702,1754935856560,-439.39,0.00016712,2]
[378639703,1754935856570,-400.0,0.00016712,2]
[378639704,1754935856579,-400.0,0.00016712,2]
[378639705,1754935856590,-914.26,0.00016712,2]
[378639706,1754935856598,-151.0,0.00016712,2]
[378639707,1754935856608,-400.0,0.00016712,2]
[378639708,1754935856618,-400.0,0.00016712,2]
[378639709,1754935856627,-2262.38,0.00016712,2]
[378639710,1754935856637,-400.0,0.00016712,2]
[378639711,1754935856646,-151.0,0.00016712,2]
[378639712,1754935856655,-400.0,0.00016712,2]
[378639713,1754935856664,-459.56,0.00016712,2]
[378639714,1754935856674,-951.65,0.00016712,2]
[378639715,1754935856682,-923.85,0.00016712,2]
[378639716,1754935856691,-437.92,0.00016712,2]
[378639717,1754935856701,-662.69,0.00016712,2]
[378639718,1754935856711,-462.47,0.00016712,2]
[378639719,1754935856721,-1209.23,0.00016712,2]
[378639720,1754935856730,-692.28,0.00016712,2]
[378639721,1754935856739,-400.0,0.00016712,2]
[378639722,1754935856749,-642.96,0.00016712,2]
[378639723,1754935856757,-899.05,0.00016712,2]
[378639724,1754935856767,-1092.56,0.00016712,2]
[378639725,1754935856776,-400.0,0.00016712,2]
[378639726,1754935856785,-400.0,0.00016712,2]
[378639727,1754935856794,-565.86,0.00016712,2]
[378639728,1754935856803,-167.48,0.00016718,2]
[378639729,1754935856813,-500.0,0.0001672,2]
[378639730,1754935856822,-151.0,0.00016721,2]
[378639731,1754935856831,-151.0,0.00016721,2]
[378639732,1754935856843,-440.81,0.00016721,2]
[378639733,1754935856853,-400.0,0.00016721,2]
[378639734,1754935856862,-151.0,0.00016721,2]
[378639735,1754935856872,-942.37,0.00016721,2]
[378639736,1754935856881,-151.0,0.00016721,2]
[378639737,1754935856890,-677.92,0.00016721,2]
[378639738,1754935856899,-1367.41,0.00016721,2]
[378639739,1754935856909,-2389.5,0.00016721,2]
[378639740,1754935856918,-2204.64,0.00016721,2]
[378639741,1754935856927,-1195.85,0.00016721,2]
[378639742,1754935856937,-1255.73,0.00016721,2]
[378639743,1754935856947,-261.38,0.00016722,2]
[378639744,1754935856956,-500.0,0.00016758,2]
[378639745,1754935856965,-5962.82103735,0.00016764,2]
[378639746,1754935856975,-183.274281,0.00016768,2]
[378639747,1754935856984,-183.274281,0.00016768,2]
[378639748,1754935856993,-537.23,0.00016772,2]
[378639749,1754935857002,-500.0,0.00016772,2]
[378639750,1754935857011,-500.0,0.00016773,2]
[378639751,1754935857020,-500.0,0.00016773,2]
[378639752,1754935857029,-500.0,0.00016773,2]
[378639753,1754935857039,-500.0,0.00016773,2]
[378639754,1754935857048,-500.0,0.00016773,2]
[378639755,1754935857057,-500.0,0.00016773,2]
[378639756,1754935857067,-598.02646376,0.00016773,2]
[378639757,1754935857076,-151.0,0.00016785,2]
[378639758,1754935857089,-151.0,0.00016785,2]
[378639759,1754935857098,-151.0,0.00016785,2]
[378639760,1754935857109,-151.0,0.00016785,2]
[378639761,1754935857120,-151.0,0.00016785,2]
[378639762,1754935857129,-1253.0,0.00016786,2]
[378639763,1754935857139,-957.0,0.00016786,2]
[378639764,1754935857149,-3367.0,0.00016786,2]
[378639765,1754935857159,-565.0,0.00016786,2]
[378639766,1754935857169,-1043.0,0.00016786,2]
[378639767,1754935857179,-598.0,0.00016786,2]
[378639768,1754935857190,-1295.0,0.00016786,2]
[378639769,1754935857200,-2027.0,0.00016786,2]
[378639770,1754935857210,-1654.0,0.00016786,2]
[378639771,1754935857220,-4145.0,0.00016786,2]
[378639772,1754935857230,-716.0,0.00016786,2]
[378639773,1754935857240,-6082.0,0.00016786,2]
[378639774,1754935857249,-21461.0,0.00016786,2]
[378639775,1754935857259,-168.0,0.00016795,2]
[378639776,1754935857269,-500.0,0.000168,6]
[378639777,1754935857279,-219.0,0.00016806,2]
[378639778,1754935857289,-165.91250195,0.0001685,2]
[378639779,1754935857299,-150.0,0.00016875,2]
[378639780,1754935857310,-150.0,0.00016875,2]
[378639781,1754935857320,-165.657,0.00016875,2]
[378639782,1754935857329,-150.0,0.00016875,2]
[378639783,1754935857343,-150.0,0.00016875,2]
[378639784,1754935857353,-150.0,0.00016875,2]
[378639785,1754935857362,-150.0,0.00016875,2]
[378639786,1754935857372,-150.0,0.00016875,2]
[378639787,1754935857381,-150.0,0.00016875,2]
[378639788,1754935857390,-810.0,0.00016875,2]
[378639789,1754935857400,-175.328,0.00016878,2]
[378639790,1754935857410,-183.274281,0.0001688,2]
[378639791,1754935857420,-183.274272,0.0001688,2]
[378639792,1754935857429,-764.28,0.0001688,2]
[378639793,1754935857439,-865.75,0.0001688,2]
[378639794,1754935857449,-1561.29,0.0001688,2]
[378639795,1754935857459,-668.67,0.00016881,2]
[378639796,1754935857469,-2129.43,0.00016881,2]
[378639797,1754935857478,-2167.97,0.00016881,2]
[378639798,1754935857487,-1099.85,0.00016881,2]
[378639799,1754935857496,-1052.01,0.00016881,2]
[378639800,1754935857506,-1523.98,0.00016881,2]
[378639801,1754935857515,-10641.31,0.00016881,2]
[378639802,1754935857525,-343.07214098,0.00016886,2]
[378639803,1754935857539,-1855.33297817,0.00016898,2]
[378639804,1754935857700,-1000.0,0.00016899,2]
[378639805,1754935857721,-800.0,0.000169,6]
[378639806,1754935857731,-2015.471,0.000169,2]
[378639807,1754935857740,-196.42188044,0.00016976,2]
[378639808,1754935857750,-600.0,0.00016976,2]
[378639809,1754935857761,-206.37372345,0.00016976,2]
[378639810,1754935857771,-5962.82103735,0.00016977,2]
[378639811,1754935857781,-500.0,0.00016985,2]
[378639812,1754935857790,-1121.88527,0.00016986,2]
[378639813,1754935857800,-644.680376,0.00016986,2]
[378639814,1754935857809,-93.6307919,0.00016986,2]
[378639815,1754935857823,-964.2368631,0.00016986,2]
[378639816,1754935857833,-400.0,0.00016986,2]
[378639817,1754935857844,-400.0,0.00016986,2]
[378639818,1754935857853,-2422.56,0.00016986,2]
[378639819,1754935857862,-508.39004182,0.00016986,2]
[378639820,1754935857872,-400.0,0.00016986,2]
[378639821,1754935857882,-400.0,0.00016986,2]
[378639822,1754935857891,-400.0,0.00016986,2]
[378639823,1754935857901,-1104.35,0.00016986,2]
[378639824,1754935857910,-165.34,0.00016986,2]
[378639825,1754935857919,-400.0,0.00016986,2]
[378639826,1754935857928,-906.18,0.00016986,2]
[378639827,1754935857938,-400.0,0.00016986,2]
[378639828,1754935857948,-503.96,0.00016986,2]
[378639829,1754935857958,-936.97,0.00016986,2]
[378639830,1754935857967,-400.0,0.00016986,2]
[378639831,1754935857977,-400.0,0.00016986,2]
[378639832,1754935857986,-400.0,0.00016986,2]
[378639833,1754935857995,-400.0,0.00016986,2]
[378639834,1754935858005,-400.0,0.00016986,2]
[378639835,1754935858014,-400.0,0.00016986,2]
[378639836,1754935858024,-929.39,0.00016986,2]
[378639837,1754935858034,-513.83,0.00016986,2]
[378639838,1754935858043,-400.0,0.00016986,2]
[378639839,1754935858054,-400.0,0.00016986,2]
[378639840,1754935858063,-151.0,0.00016986,2]
[378639841,1754935858073,-2021.37,0.00016986,2]
[378639842,1754935858082,-400.0,0.00016986,2]
[378639843,1754935858093,-400.0,0.00016986,2]
[378639844,1754935858102,-151.0,0.00016986,2]
[378639845,1754935858112,-400.0,0.00016986,2]
[378639846,1754935858124,-400.0,0.00016986,2]
[378639847,1754935858134,-400.0,0.00016986,2]
[378639848,1754935858143,-1064.36,0.00016986,2]
[378639849,1754935858153,-400.0,0.00016986,2]
[378639850,1754935858163,-400.0,0.00016986,2]
[378639851,1754935858172,-400.0,0.00016986,2]
[378639852,1754935858182,-2255.04,0.00016986,2]
[378639853,1754935858192,-829.58,0.00016986,2]
[378639854,1754935858203,-400.0,0.00016986,2]
[378639855,1754935858213,-400.0,0.00016986,2]
[378639856,1754935858222,-400.0,0.00016986,2]
[378639857,1754935858232,-400.0,0.00016986,2]
[378639858,1754935858241,-400.0,0.00016986,2]
[378639859,1754935858251,-503.66,0.00016986,2]
[378639860,1754935858260,-400.0,0.00016986,2]
[378639861,1754935858270,-764.38,0.00016986,2]
[378639862,1754935858281,-682.85,0.00016986,2]
[378639863,1754935858291,-830.97,0.00016986,2]
[378639864,1754935858301,-614.32,0.00016986,2]
[378639865,1754935858311,-400.0,0.00016986,2]
[378639866,1754935858321,-400.0,0.00016986,2]
[378639867,1754935858332,-458.16,0.00016986,2]
[378639868,1754935858343,-400.0,0.00016986,2]
[378639869,1754935858354,-400.0,0.00016986,2]
[378639870,1754935858364,-417.19,0.00016986,2]
[378639871,1754935858375,-174.33340568,0.00016986,2]
[378639872,1754935858386,-456.93,0.00016986,2]
[378639873,1754935858396,-474.77,0.00016986,2]
[378639874,1754935858406,-400.0,0.00016986,2]
[378639875,1754935858416,-400.0,0.00016986,2]
[378639876,1754935858426,-1027.39,0.00016986,2]
[378639877,1754935858436,-400.0,0.00016986,2]
[378639878,1754935858446,-400.0,0.00016986,2]
[378639879,1754935858456,-537.22,0.00016986,2]
[378639880,1754935858465,-695.16,0.00016986,2]
[378639881,1754935858478,-448.32,0.00016986,2]
[378639882,1754935858488,-400.0,0.00016986,2]
[378639883,1754935858497,-400.0,0.00016986,2]
[378639884,1754935858507,-400.0,0.00016986,2]
[378639885,1754935858517,-400.0,0.00016986,2]
[378639886,1754935858527,-431.94292985,0.00016986,2]
[378639887,1754935858536,-400.0,0.00016986,2]
[378639888,1754935858546,-461.1,0.00016986,2]
[378639889,1754935858555,-400.0,0.00016986,2]
[378639890,1754935858565,-400.0,0.00016986,2]
[378639891,1754935858574,-545.95963654,0.00016986,2]
[378639892,1754935858583,-400.0,0.00016986,2]
[378639893,1754935858594,-453.7,0.00016986,2]
[378639894,1754935858604,-400.0,0.00016986,2]
[378639895,1754935858613,-1914.23,0.00016986,2]
[378639896,1754935858622,-400.0,0.00016986,2]
[378639897,1754935858631,-495.45,0.00016986,2]
[378639898,1754935858641,-400.0,0.00016986,2]